bitfinex-derivatives/quotes_ETHF0:USTF0_20230104
["timestamp","ask_amount","ask_price","bid_price","bid_amount"]
[1672860392811,1.73886748,1256.4,1256.1,4.5923]
[1672860393223,1.73886748,1256.4,1256.2,1.5]
[1672860393436,1.73886748,1256.4,1256.3,3.0073]
[1672860393646,1.73886748,1256.4,1256.2,3.095]
[1672860396171,1.73886748,1256.4,1256.2,1.5]
[1672860396375,4.08615839,1256.4,1256.1,4.5923]
[1672860396585,3.31786748,1256.3,1256.1,3.0073]
[1672860396803,3.31786748,1256.3,1256.0,2.5]
[1672860398057,5.66515839,1256.3,1256.0,2.5]
[1672860398264,3.31786748,1256.3,1256.0,2.5]
[1672860398485,1.73886748,1256.4,1256.1,4.6023]
[1672860398689,1.73886748,1256.5,1256.2,1.585]
[1672860399321,4.08615839,1256.5,1256.2,1.585]
[1672860399534,4.08615839,1256.5,1256.1,4.6023]
[1672860399535,13.61715839,1256.5,1256.1,4.6023]
[1672860399854,3.23886748,1256.4,1256.1,1.595]
[1672860400478,4.82986748,1256.4,1256.0,4.084]
[1672860402055,7.83716748,1256.4,1256.0,4.084]
[1672860402469,10.18445839,1256.4,1256.0,4.084]
[1672860402998,3.32786748,1256.3,1256.0,2.5]
[1672860403214,1.595,1256.2,1255.9,4.5073]
[1672860403424,1.595,1256.2,1255.9,1.5]
[1672860404161,6.32516748,1256.2,1255.9,1.5]
[1672860404583,6.32516748,1256.2,1255.8,16.458]
[1672860404891,6.32516748,1256.2,1255.8,2.5]
[1672860405416,4.6023,1256.0,1255.7,3.0073]
[1672860405619,1.595,1255.9,1255.7,2.5]
[1672860406041,4.6023,1256.0,1255.7,2.5]
[1672860406259,2.5,1255.9,1255.7,2.5]
[1672860407724,7.1023,1256.0,1255.7,2.5]
[1672860407944,8.84116748,1256.0,1255.7,2.5]
[1672860408257,2.5,1255.9,1255.7,2.5]
[1672860408884,2.5,1255.9,1255.6,1.595]
[1672860409097,5.83386748,1255.9,1255.6,2.5]
[1672860409304,13.78186748,1255.9,1255.6,2.5]
[1672860409515,3.0073,1255.8,1255.6,2.5]
[1672860409721,1.5,1255.7,1255.5,2.5]
[1672860409941,3.095,1255.7,1255.4,1.5]
[1672860410146,1.595,1255.6,1255.4,1.5]
[1672860411296,1.595,1255.6,1255.3,3.0073]
[1672860411516,1.595,1255.6,1255.4,2.5]
[1672860412144,4.6023,1255.6,1255.4,2.5]
[1672860412569,4.83386748,1255.7,1255.4,2.5]
[1672860412773,3.23886748,1255.7,1255.4,4.095]
[1672860413614,3.23886748,1255.7,1255.4,2.5]
[1672860413831,4.83386748,1255.7,1255.4,2.5]
[1672860414351,1.73886748,1255.6,1255.4,2.5]
[1672860414561,4.83386748,1255.7,1255.4,2.5]
[1672860417086,4.83386748,1255.7,1255.4,3.68074887]
[1672860417504,4.83386748,1255.7,1255.4,2.5]
[1672860417710,4.83386748,1255.7,1255.5,3.0073]
[1672860418552,3.33386748,1255.7,1255.5,3.0073]
[1672860418970,1.73886748,1255.7,1255.5,3.0073]
[1672860419184,6.33916748,1255.8,1255.5,3.0073]
[1672860419504,1.5,1255.7,1255.5,4.6003]
[1672860420768,3.23886748,1255.7,1255.5,4.6003]
[1672860421174,1.5,1255.7,1255.5,4.6003]
[1672860422019,3.23886748,1255.7,1255.5,3.0073]
[1672860422234,4.82886748,1255.7,1255.5,3.0073]
[1672860422758,4.82886748,1255.7,1255.2,2.68074887]
[1672860422759,12.87686748,1255.6,1255.2,2.68074887]
[1672860422958,1.579,1255.4,1255.2,1.5]
[1672860423382,4.079,1255.4,1255.2,1.5]
[1672860423606,4.079,1255.4,1255.1,3.68074887]
[1672860424124,8.82516748,1255.4,1255.0,19.73904887]
[1672860424328,8.82516748,1255.4,1255.1,2.5]
[1672860424534,4.079,1255.4,1255.1,2.5]
[1672860427487,12.027,1255.4,1255.1,2.5]
[1672860427695,15.0343,1255.4,1255.1,2.5]
[1672860427910,15.0343,1255.4,1255.0,7.1003]
[1672860428534,15.0343,1255.4,1255.1,2.5]
[1672860428741,16.77316748,1255.4,1255.1,2.5]
[1672860428960,15.0343,1255.4,1255.1,2.5]
[1672860429382,7.0863,1255.4,1255.1,2.5]
[1672860430118,4.079,1255.4,1255.1,2.5]
[1672860430637,4.083,1255.5,1255.1,4.085]
[1672860431477,12.031,1255.5,1255.1,4.085]
[1672860431897,12.031,1255.5,1255.1,1.585]
[1672860432110,1.595,1255.2,1255.0,5.5073]
[1672860432534,4.095,1255.2,1255.0,5.5073]
[1672860433050,12.043,1255.2,1255.0,5.5073]
[1672860433265,12.043,1255.2,1255.0,2.5]
[1672860433472,1.595,1255.2,1255.0,2.5]
[1672860433689,1.583,1255.3,1255.0,2.5]
[1672860433690,12.031,1255.3,1255.0,2.5]
[1672860434113,12.031,1255.3,1254.9,4.083]
[1672860434633,1.595,1255.1,1254.8,5.5073]
[1672860435055,1.595,1255.1,1254.9,2.5]
[1672860436097,9.543,1255.1,1254.8,3.0073]
[1672860436308,9.543,1255.1,1254.6,5.5073]
[1672860436309,9.543,1254.9,1254.6,5.5073]
[1672860436524,1.595,1254.9,1254.6,6.68804887]
[1672860436732,1.579,1254.9,1254.8,3.0073]
[1672860436945,1.591,1255.0,1254.8,3.0073]
[1672860437150,1.591,1255.0,1254.7,2.5]
[1672860437786,9.539,1255.0,1254.7,2.5]
[1672860438308,1.595,1255.1,1254.8,3.0073]
[1672860438518,12.5503,1255.2,1254.8,4.6023]
[1672860438728,12.5503,1255.2,1254.9,1.5]
[1672860440410,4.6023,1255.2,1254.9,1.5]
[1672860440617,12.5503,1255.2,1254.9,1.5]
[1672860440834,4.6023,1255.2,1254.9,1.5]
[1672860441356,7.948,1255.1,1254.9,1.5]
[1672860441781,0.00506898,1254.9,1254.7,5.26874887]
[1672860441990,0.00506898,1254.9,1254.7,2.5]
[1672860443145,0.00506898,1254.9,1254.7,3.68074887]
[1672860443356,0.00506898,1254.9,1254.8,1.595]
[1672860443564,0.00506898,1254.9,1254.8,4.6023]
[1672860444509,1.59506898,1254.9,1254.7,2.5]
[1672860444723,9.54306898,1254.9,1254.7,2.5]
[1672860444934,0.00506898,1254.9,1254.7,5.5073]
[1672860445356,0.00506898,1254.9,1254.7,8.27104887]
[1672860446081,6.898e-05,1254.9,1254.8,11.124]
[1672860446292,16.62545839,1255.4,1254.8,15.589475]
[1672860446508,14.27816748,1255.4,1255.0,1.585]
[1672860446931,11.27086748,1255.4,1255.0,1.585]
[1672860447141,13.77086748,1255.4,1255.1,2.5]
[1672860447348,13.77086748,1255.4,1255.1,5.5073]
[1672860447560,11.27086748,1255.4,1255.1,5.5073]
[1672860447775,9.532,1255.4,1255.1,5.5073]
[1672860448302,1.584,1255.4,1255.3,3.0073]
[1672860448512,8.68845839,1255.6,1255.3,3.0073]
[1672860448723,7.09345839,1255.6,1255.3,3.0073]
[1672860449033,4.23886748,1255.4,1255.1,5.5073]
[1672860449248,5.83386748,1255.4,1255.1,5.5073]
[1672860449460,7.948,1255.3,1255.1,5.5073]
[1672860449658,2.5,1255.2,1255.1,5.5073]
[1672860450089,9.448,1255.3,1255.1,5.5073]
[1672860450510,2.5,1255.2,1255.1,5.5073]
[1672860450927,11.037,1255.3,1255.1,5.5073]
[1672860451252,5.83386748,1255.4,1255.1,5.5073]
[1672860451559,2.5,1255.3,1255.1,5.5073]
[1672860452509,2.5,1255.3,1255.1,3.0073]
[1672860452713,2.5,1255.3,1255.0,3.68074887]
[1672860452714,12.043,1255.3,1255.0,3.68074887]
[1672860452924,13.78186748,1255.3,1255.0,2.5]
[1672860453139,16.12915839,1255.3,1254.9,4.19004887]
[1672860453353,13.78186748,1255.3,1255.0,2.5]
[1672860454184,16.12915839,1255.3,1255.0,2.5]
[1672860454600,1.73886748,1255.2,1255.0,2.5]
[1672860456173,9.538,1255.1,1254.9,0.002]
[1672860456384,1.584,1255.0,1254.9,0.002]
[1672860457013,3.33386748,1255.0,1254.9,0.002]
[1672860457227,14.28916748,1255.0,1254.9,0.002]
[1672860458490,14.89759091,1255.0,1254.9,0.002]
[1672860458705,14.30762855,1255.0,1254.9,0.002]
[1672860458919,14.89759091,1255.0,1254.9,0.002]
[1672860459657,3.35337773,1255.0,1254.9,0.002]
[1672860460079,12.80137773,1255.0,1254.9,0.002]
[1672860460287,16.39759091,1255.0,1254.9,0.002]
[1672860461016,18.15570956,1255.0,1254.9,0.002]
[1672860461224,16.39759091,1255.0,1254.9,0.002]
[1672860461437,18.15578713,1255.0,1254.9,0.002]
[1672860461648,15.80849622,1255.0,1254.9,0.002]
[1672860462280,16.39759091,1255.0,1254.9,0.002]
[1672860462494,18.15579641,1255.0,1254.9,0.002]
[1672860462704,16.39759091,1255.0,1254.9,0.002]
[1672860463961,1.75909891,1255.0,1254.9,3.0093]
[1672860464282,4.10638982,1255.1,1254.9,0.002]
[1672860464496,1.5,1255.0,1254.9,0.002]
[1672860464809,1.5,1255.0,1254.9,1.502]
[1672860465021,4.10638982,1255.1,1254.9,3.087]
[1672860465227,1.75909891,1255.1,1254.9,7.27504887]
[1672860465442,1.75909891,1255.2,1255.0,1.593]
[1672860465753,1.75909891,1255.2,1255.0,2.77374887]
[1672860465959,1.75909891,1255.2,1255.1,2.5]
[1672860466590,2.34729091,1255.2,1255.1,2.5]
[1672860466807,3.84729091,1255.2,1254.9,7.28504887]
[1672860467119,1.76008852,1255.1,1254.9,9.069775]
[1672860467325,1.76008852,1255.1,1254.9,7.28504887]
[1672860468581,1.76008852,1255.1,1254.9,9.069775]
[1672860468795,1.76008852,1255.1,1255.0,1.18074887]
[1672860469005,1.76008852,1255.1,1254.9,9.069775]
[1672860469222,1.76008852,1255.1,1255.0,1.18074887]
[1672860469845,1.76008852,1255.1,1255.0,2.77574887]
[1672860472586,1.76008852,1255.2,1255.0,4.560475]
[1672860472801,1.76008852,1255.2,1255.1,7.1023]
[1672860473534,4.10737943,1255.2,1255.1,7.1023]
[1672860473746,1.76100689,1255.2,1255.1,7.1023]
[1672860474372,4.1082978,1255.2,1255.1,7.1023]
[1672860474589,2.34729091,1255.2,1255.1,7.1023]
[1672860474803,4.10836347,1255.2,1255.1,7.1023]
[1672860475007,2.34729091,1255.2,1255.1,7.1023]
[1672860475639,3.84729091,1255.2,1255.1,4.6023]
[1672860475857,2.34729091,1255.2,1255.1,1.595]
[1672860476068,3.84729091,1255.2,1255.1,1.595]
[1672860476376,2.34729091,1255.2,1255.1,1.595]
[1672860476586,3.84729091,1255.2,1255.1,1.595]
[1672860476798,6.77897842,1255.2,1255.1,1.595]
[1672860477114,3.84729091,1255.2,1255.1,1.595]
[1672860477324,3.84729091,1255.2,1255.0,4.088]
[1672860477534,1.76104639,1255.1,1255.0,4.088]
[1672860478584,1.76104639,1255.1,1255.0,3.0073]
[1672860478786,3.94229091,1255.1,1254.9,1.18274887]
[1672860478997,1.76105719,1255.0,1254.9,0.002]
[1672860479419,1.76105719,1255.0,1254.9,1.18274887]
[1672860479629,1.76105719,1255.0,1254.9,2.68274887]
[1672860479835,1.76105719,1255.0,1254.9,1.18274887]
[1672860480051,2.34729091,1255.0,1254.9,0.002]
[1672860480584,7.53398751,1255.0,1254.9,0.002]
[1672860480787,17.82963931,1255.0,1254.9,0.002]
[1672860480997,15.48198751,1255.0,1254.9,0.002]
[1672860482165,1.1814,1254.8,1254.5,16.923475]
[1672860482378,3.94034194,1254.6,1254.4,1.18074887]
[1672860482689,3.94034194,1254.6,1254.3,1.18074887]
[1672860482690,10.88194786,1254.5,1254.3,1.18074887]
[1672860482905,2.93388555,1254.4,1254.3,1.18074887]
[1672860483114,5.43388555,1254.4,1254.2,5.465475]
[1672860483319,2.93388555,1254.5,1254.3,5.0]
[1672860483529,2.34734194,1254.9,1254.5,1.1814]
[1672860483741,2.34734194,1255.1,1254.8,3.0073]
[1672860483951,5.28151936,1255.2,1255.0,3.0073]
[1672860484166,2.34734194,1255.2,1255.0,3.0073]
[1672860484482,2.34734194,1255.3,1255.1,1.594]
[1672860484690,6.43334194,1255.3,1255.0,6.69751265]
[1672860484889,6.43334194,1255.3,1255.0,2.5]
[1672860484890,10.29534194,1255.1,1255.0,2.5]
[1672860485100,7.948,1255.1,1254.6,8.48283162]
[1672860485313,10.29247282,1255.0,1254.6,6.69751265]
[1672860485523,3.93947282,1254.9,1254.6,5.5073]
[1672860485736,1.595,1254.9,1254.6,5.5073]
[1672860485944,6.42747282,1255.0,1254.6,6.69751265]
[1672860486158,6.42747282,1255.0,1254.7,1.19021265]
[1672860486371,6.42747282,1255.0,1254.6,8.48283162]
[1672860486682,1.5,1254.9,1254.8,1.5]
[1672860487103,1.5,1254.9,1254.7,3.0073]
[1672860487848,5.43947282,1254.9,1254.8,1.5]
[1672860488257,3.095,1254.9,1254.8,1.5]
[1672860488684,3.095,1254.9,1254.7,3.0073]
[1672860489414,3.92747282,1255.0,1254.8,1.5]
[1672860489630,2.34447282,1255.0,1254.9,3.0073]
[1672860489829,2.34447282,1255.1,1254.9,3.0073]
[1672860491204,10.29247282,1255.2,1254.9,3.0073]
[1672860491626,13.22665024,1255.2,1254.9,3.0073]
[1672860491829,2.34447282,1255.2,1254.9,3.0073]
[1672860492040,2.34447282,1255.2,1255.1,3.0073]
[1672860492887,4.84447282,1255.2,1255.1,3.0073]
[1672860493104,2.34447282,1255.2,1255.1,5.5073]
[1672860493734,2.34447282,1255.3,1255.1,7.0983]
[1672860494150,5.27865024,1255.4,1255.1,7.0983]
[1672860494365,2.34447282,1255.4,1255.1,7.0983]
[1672860494564,2.34447282,1255.3,1255.1,7.1023]
[1672860494988,5.27865024,1255.3,1255.1,7.1023]
[1672860495204,13.22665024,1255.3,1255.1,5.5073]
[1672860495408,4.84447282,1255.2,1255.0,1.594]
[1672860495615,4.84447282,1255.2,1254.9,5.5073]
[1672860495616,14.37547282,1255.2,1254.9,5.5073]
[1672860495830,2.34447282,1255.1,1254.9,5.5073]
[1672860496459,2.34447282,1255.2,1254.9,5.5073]
[1672860496676,2.34447282,1255.2,1255.0,2.5]
[1672860497615,4.51717742,1255.3,1255.1,3.0073]
[1672860497616,2.34447282,1255.3,1255.1,3.0073]
[1672860499199,2.34447282,1255.2,1255.0,2.5]
[1672860499406,10.29247282,1255.2,1255.0,2.5]
[1672860499933,2.34447282,1255.2,1255.0,2.5]
[1672860500139,2.34447282,1255.3,1255.0,2.5]
[1672860500349,2.34447282,1255.3,1255.1,3.0073]
[1672860501084,2.34447282,1255.3,1255.1,4.5953]
[1672860501503,2.93417742,1255.4,1255.1,4.5953]
[1672860501504,2.34447282,1255.4,1255.1,4.5953]
[1672860501714,2.34447282,1255.4,1255.3,3.0073]
[1672860501926,2.93417742,1255.5,1255.3,4.6023]
[1672860501927,2.34447282,1255.5,1255.3,4.6023]
[1672860502345,2.34447282,1255.5,1255.4,1.595]
[1672860502774,2.34447282,1255.6,1255.4,1.595]
[1672860502977,2.34447282,1255.6,1255.5,3.0073]
[1672860503296,5.27865024,1255.7,1255.5,7.0983]
[1672860503497,2.34447282,1255.6,1255.5,2.5]
[1672860503933,2.34447282,1255.6,1255.5,5.5073]
[1672860504344,2.34447282,1255.6,1255.5,7.0923]
[1672860504883,2.93417742,1255.7,1255.5,7.0923]
[1672860504884,2.34447282,1255.7,1255.5,7.0923]
[1672860505084,2.34447282,1255.7,1255.5,15.0403]
[1672860505401,2.34447282,1255.7,1255.5,7.0923]
[1672860505611,2.34447282,1255.6,1255.5,7.0923]
[1672860505931,4.84447282,1255.6,1255.4,1.5]
[1672860506135,4.84447282,1255.6,1255.3,4.5953]
[1672860506343,2.34447282,1255.5,1255.3,3.0073]
[1672860506554,1.5,1255.4,1255.3,3.0073]
[1672860506874,3.84447282,1255.4,1255.2,2.5]
[1672860507088,1.5,1255.4,1255.2,5.5073]
[1672860507300,3.84447282,1255.4,1255.2,5.5073]
[1672860507508,2.34447282,1255.5,1255.2,5.5073]
[1672860507824,2.34447282,1255.5,1255.2,7.1023]
[1672860508025,2.34447282,1255.5,1255.2,15.0503]
[1672860508232,7.77865024,1255.6,1255.2,15.0503]
[1672860508662,4.84447282,1255.6,1255.4,4.6023]
[1672860508872,2.34447282,1255.5,1255.2,7.1023]
[1672860510765,2.34447282,1255.5,1255.2,15.0503]
[1672860510974,2.34447282,1255.5,1255.2,5.5073]
[1672860511175,5.27865024,1255.5,1255.2,5.5073]
[1672860511384,2.34447282,1255.5,1255.2,5.5073]
[1672860512552,5.27865024,1255.5,1255.2,2.5]
[1672860512764,5.27865024,1255.5,1255.2,7.0903]
[1672860512971,2.34447282,1255.5,1255.2,7.0903]
[1672860513300,2.34447282,1255.5,1255.2,5.5073]
[1672860513608,9.88095024,1255.5,1255.2,3.0073]
[1672860513920,2.34447282,1255.4,1255.3,2.5]
[1672860514122,3.93947282,1255.5,1255.3,2.5]
[1672860514334,6.87365024,1255.5,1255.3,2.5]
[1672860514541,2.34447282,1255.4,1255.3,2.5]
[1672860515068,2.34447282,1255.5,1255.3,2.5]
[1672860515279,5.27865024,1255.5,1255.3,2.5]
[1672860515701,2.34447282,1255.5,1255.3,2.5]
[1672860516222,2.34447282,1255.5,1255.2,3.0073]
[1672860516430,5.27865024,1255.5,1255.2,3.0073]
[1672860516646,8.28595024,1255.5,1255.2,3.0073]
[1672860516855,2.34447282,1255.4,1255.3,2.5]
[1672860517065,5.35177282,1255.5,1255.3,2.5]
[1672860517274,2.34447282,1255.5,1255.3,2.5]
[1672860517477,2.34447282,1255.4,1255.1,1.5]
[1672860517694,6.86165024,1255.4,1255.1,1.5]
[1672860518528,4.84447282,1255.3,1255.1,1.5]
[1672860519371,6.42747282,1255.3,1255.1,1.5]
[1672860520120,4.083,1255.3,1255.1,1.5]
[1672860522009,4.083,1255.3,1255.0,5.5073]
[1672860522327,1.595,1255.2,1254.8,5.79251265]
[1672860522537,1.595,1255.2,1254.9,2.5]
[1672860522544,3.93947282,1255.2,1254.9,2.5]
[1672860523060,1.5,1255.1,1254.9,2.5]
[1672860523268,3.84447282,1255.1,1254.9,2.5]
[1672860523590,3.84447282,1255.1,1254.7,15.14821265]
[1672860523591,1.583,1255.0,1254.7,15.14821265]
[1672860523900,1.583,1255.0,1254.6,4.19751265]
[1672860523901,10.29247282,1255.0,1254.6,4.19751265]
[1672860524111,5.35177282,1254.9,1254.7,2.5]
[1672860524319,2.5,1254.8,1254.7,2.5]
[1672860524536,2.34447282,1255.0,1254.7,2.5]
[1672860524733,4.083,1254.9,1254.7,2.5]
[1672860525271,2.34447282,1254.8,1254.6,2.5]
[1672860525474,7.0903,1254.9,1254.6,3.69021265]
[1672860525683,4.5903,1254.9,1254.6,3.69021265]
[1672860525997,1.595,1255.0,1254.7,1.19021265]
[1672860526203,3.84447282,1255.1,1254.8,1.5]
[1672860527045,3.84447282,1255.1,1254.8,5.69751265]
[1672860527259,9.44677282,1255.2,1254.8,5.69751265]
[1672860527475,6.94677282,1255.2,1254.8,7.27751265]
[1672860527689,6.94677282,1255.2,1254.8,9.06283162]
[1672860527994,4.84447282,1255.1,1254.8,7.27751265]
[1672860528416,6.43947282,1255.1,1254.8,5.69751265]
[1672860528628,6.43947282,1255.1,1254.8,4.5073]
[1672860528835,3.0073,1255.0,1254.8,3.0073]
[1672860529042,3.0073,1255.0,1254.7,1.19021265]
[1672860529043,4.5963,1255.0,1254.7,1.19021265]
[1672860529259,1.5,1254.9,1254.6,5.47553162]
[1672860530727,3.079,1254.9,1254.6,3.69021265]
[1672860530934,3.0073,1254.8,1254.5,5.47553162]
[1672860531149,4.5903,1254.8,1254.5,3.69021265]
[1672860531780,4.5903,1254.8,1254.4,5.47553162]
[1672860531987,1.593,1254.7,1254.4,5.47553162]
[1672860532201,4.093,1254.7,1254.4,5.47553162]
[1672860533041,4.093,1254.7,1254.4,2.5]
[1672860533670,12.5503,1254.6,1254.3,18.15551265]
[1672860533881,1.583,1254.4,1254.1,4.19751265]
[1672860534094,1.595,1254.3,1254.1,4.19751265]
[1672860534411,12.5503,1254.6,1254.1,4.19751265]
[1672860534616,10.448,1254.5,1254.2,2.5]
[1672860534821,1.593,1254.4,1254.2,2.5]
[1672860535243,1.593,1254.4,1254.1,3.69021265]
[1672860535451,1.593,1254.4,1254.0,1.111]
[1672860535452,1.579,1254.2,1254.0,1.111]
[1672860535671,1.583,1254.1,1254.0,1.111]
[1672860536086,11.031,1254.1,1254.0,1.111]
[1672860536299,3.095,1254.1,1254.0,3.611]
[1672860536613,1.595,1254.1,1254.0,3.611]
[1672860537873,3.083,1254.2,1254.0,3.611]
[1672860538187,1.583,1254.2,1254.0,3.611]
[1672860541658,1.583,1254.2,1254.0,1.111]
[1672860541869,1.583,1254.2,1254.0,3.611]
[1672860542073,1.583,1254.2,1254.0,1.111]
[1672860542285,7.948,1254.2,1254.0,1.111]
[1672860542497,10.9553,1254.2,1254.0,1.111]
[1672860542711,12.5503,1254.2,1254.0,1.111]
[1672860543856,4.6023,1254.2,1254.0,1.111]
[1672860546170,1.595,1254.2,1254.0,1.111]
[1672860546798,3.0073,1254.4,1254.0,2.699]
[1672860547019,3.0073,1254.4,1254.1,3.0073]
[1672860547333,3.0073,1254.4,1254.0,2.699]
[1672860547538,3.0073,1254.4,1254.1,3.0073]
[1672860547752,12.5503,1254.4,1254.0,1.111]
[1672860547962,1.591,1254.2,1254.0,1.111]
[1672860548171,12.5463,1254.2,1254.0,1.111]
[1672860549007,4.5983,1254.2,1254.0,1.111]
[1672860550060,3.0073,1254.2,1254.0,1.111]
[1672860550477,12.5463,1254.2,1254.0,1.111]
[1672860550687,1.584,1254.1,1254.0,1.111]
[1672860551320,1.595,1254.1,1254.0,1.111]
[1672860551531,1.595,1254.1,1253.5,1.593]
[1672860551532,2.1814,1254.0,1253.5,1.593]
[1672860551847,1.595,1253.7,1253.2,1.78531897]
[1672860552063,10.9553,1253.6,1253.3,2.5]
[1672860553113,10.448,1253.5,1253.3,2.5]
[1672860553325,1.595,1253.4,1253.3,2.5]
[1672860553536,1.579,1253.4,1253.3,2.5]
[1672860554270,1.583,1253.4,1253.2,2.5]
[1672860554476,4.095,1253.5,1253.3,3.0073]
[1672860554796,4.095,1253.5,1253.1,4.5073]
[1672860555115,1.1814,1253.1,1252.7,3.0073]
[1672860555322,1.1814,1253.1,1252.3,2.35961322]
[1672860555323,3.0073,1252.8,1252.2,5.37891265]
[1672860555638,12.5583,1252.8,1252.2,10.37891265]
[1672860555948,1.595,1252.7,1252.4,3.0073]
[1672860556156,1.595,1252.7,1252.3,6.46661265]
[1672860556364,1.595,1252.7,1252.3,5.2764]
[1672860556581,1.595,1252.7,1252.4,3.0073]
[1672860556793,1.595,1252.7,1252.5,2.5]
[1672860557009,1.593,1252.6,1252.3,2.5]
[1672860557209,1.595,1252.7,1252.3,2.5]
[1672860557210,1.583,1252.4,1252.3,2.5]
[1672860557524,10.81155161,1252.4,1252.0,3.0073]
[1672860557739,1.595,1252.1,1251.8,7.16423162]
[1672860557943,0.5,1252.1,1251.9,2.5]
[1672860558149,11.129,1252.0,1251.9,2.5]
[1672860558359,11.129,1252.0,1251.8,3.0073]
[1672860558573,11.129,1252.0,1251.8,5.0]
[1672860558574,7.948,1252.0,1251.8,5.0]
[1672860558884,7.19,1252.7,1252.1,1.96519413]
[1672860558885,1.595,1252.7,1252.1,1.96519413]
[1672860559099,7.948,1252.4,1252.1,4.97249413]
[1672860559306,1.591,1252.5,1252.1,4.97249413]
[1672860559307,1.593,1252.3,1252.1,1.96519413]
[1672860559836,1.593,1252.3,1252.2,2.5]
[1672860560044,2.5,1252.4,1252.2,5.5073]
[1672860560045,4.095,1252.4,1252.2,5.5073]
[1672860560254,4.095,1252.4,1252.1,1.96519413]
[1672860560465,7.948,1252.2,1252.1,1.96519413]
[1672860560673,1.595,1252.3,1252.1,1.96519413]
[1672860560887,0.68929205,1252.3,1252.2,2.5]
[1672860561620,0.5,1252.6,1252.2,15.0383]
[1672860561621,2.083,1252.6,1252.2,15.0383]
[1672860561830,1.583,1252.6,1252.4,3.0073]
[1672860562044,1.583,1252.7,1252.4,3.0073]
[1672860562256,1.583,1252.7,1252.6,3.0073]
[1672860562464,2.7894,1253.0,1252.6,10.9553]
[1672860562465,1.608,1253.0,1252.6,10.9553]
[1672860562669,4.079,1253.1,1252.8,3.0073]
[1672860562880,2.5,1253.2,1252.9,1.5]
[1672860563099,4.095,1253.2,1253.0,3.0073]
[1672860563415,0.61281664,1253.1,1253.0,12.5503]
[1672860563630,0.61281664,1253.1,1253.0,12.5403]
[1672860563829,0.61281664,1253.1,1253.0,2.5]
[1672860564036,0.61281664,1253.1,1253.0,5.5073]
[1672860564665,0.61281664,1253.1,1253.0,2.5]
[1672860565191,0.61281664,1253.1,1253.0,15.0403]
[1672860565403,6.0073,1253.8,1253.0,13.4553]
[1672860565612,5.6674,1253.9,1253.3,8.0073]
[1672860565819,5.6674,1253.9,1253.3,15.9553]
[1672860565820,1.59,1253.7,1253.3,15.9553]
[1672860566237,0.00954571,1253.6,1253.3,10.9553]
[1672860566867,1.59,1253.7,1253.5,3.0073]
[1672860567287,1.59,1253.7,1253.3,10.9553]
[1672860567501,1.59,1253.7,1253.3,15.9553]
[1672860567711,1.59,1253.7,1253.4,2.5]
[1672860568343,1.595,1253.8,1253.5,3.0073]
[1672860568560,1.583,1253.9,1253.5,10.9553]
[1672860568769,1.583,1253.9,1253.7,3.0073]
[1672860568975,1.595,1253.9,1253.5,4.5953]
[1672860569186,0.55075223,1253.8,1253.5,4.5953]
[1672860569401,1.595,1253.9,1253.5,4.5953]
[1672860570026,1.595,1253.9,1253.7,3.0073]
[1672860570241,2.695,1254.0,1253.7,3.0073]
[1672860570652,1.584,1254.0,1253.7,3.0073]
[1672860570866,1.595,1253.9,1253.5,3.0073]
[1672860571075,1.595,1253.9,1253.4,2.5]
[1672860571076,1.595,1253.6,1253.4,2.5]
[1672860571287,10.948,1253.8,1253.4,2.5]
[1672860571288,1.591,1253.5,1253.4,2.5]
[1672860571923,1.595,1253.5,1253.4,2.5]
[1672860573395,1.595,1253.5,1253.3,1.5]
[1672860573608,1.593,1253.5,1253.3,1.5]
[1672860574976,1.593,1253.5,1253.2,2.5]
[1672860575705,15.124,1253.2,1252.7,5.5073]
[1672860575912,12.1367,1253.4,1252.7,2.5]
[1672860576126,2.5,1253.3,1252.9,5.5073]
[1672860576548,2.5,1253.3,1253.0,1.5]
[1672860576856,1.59,1253.2,1253.0,1.5]
[1672860577076,1.591,1253.1,1253.0,1.5]
[1672860577277,1.589,1253.1,1253.0,1.5]
[1672860577492,1.589,1253.1,1252.9,5.5073]
[1672860577806,1.595,1253.0,1252.7,5.5073]
[1672860578015,1.579,1252.9,1252.7,5.5073]
[1672860578331,1.595,1252.7,1252.5,3.0073]
[1672860578549,1.583,1252.6,1252.5,3.0073]
[1672860580124,1.583,1252.6,1252.4,2.5]
[1672860580848,1.595,1252.8,1252.5,10.9553]
[1672860581059,2.5,1252.9,1252.5,10.9553]
[1672860581060,3.0073,1253.2,1252.7,4.6013]
[1672860581271,3.6814,1253.3,1252.7,4.6013]
[1672860581596,1.591,1253.1,1252.8,1.5]
[1672860582119,3.091,1253.1,1252.8,1.5]
[1672860582328,1.591,1253.1,1252.8,1.5]
[1672860582540,3.091,1253.1,1252.8,1.5]
[1672860583383,1.595,1253.0,1252.7,5.5073]
[1672860583584,1.595,1252.9,1252.8,1.5]
[1672860583789,1.595,1252.9,1252.5,13.958]
[1672860583790,11.138,1252.9,1252.5,13.958]
[1672860584005,7.948,1252.9,1252.6,2.5]
[1672860584212,7.948,1252.9,1252.7,3.0073]
[1672860584422,1.593,1252.8,1252.7,3.0073]
[1672860584639,7.948,1252.9,1252.8,1.5]